bitfinex-derivatives/quotes_ETHF0:USTF0_20251001
["timestamp","ask_amount","ask_price","bid_price","bid_amount"]
[1759297644961,1.0026059,4153.1,4153.0,0.9021]
[1759297645166,1.2147059,4153.1,4153.0,0.9021]
[1759297645666,1.1174059,4153.1,4153.0,1.33541]
[1759297646368,0.6781059,4153.1,4153.0,1.33541]
[1759297646565,0.0028059,4153.1,4153.0,1.33541]
[1759297646867,0.2448059,4153.1,4153.0,1.33541]
[1759297647867,0.0028059,4153.1,4153.0,1.33541]
[1759297648662,0.4361059,4153.1,4153.0,1.33541]
[1759297648871,0.6633059,4153.1,4153.0,1.33541]
[1759297649670,0.2300059,4153.1,4153.0,1.33541]
[1759297650177,0.6633059,4153.1,4153.0,1.33541]
[1759297650773,0.2300059,4153.1,4153.0,1.33541]
[1759297651174,0.6633059,4153.1,4153.0,1.33541]
[1759297651566,0.6633059,4153.1,4153.0,0.9021]
[1759297651766,0.6633059,4153.1,4153.0,1.33541]
[1759297652071,0.6633059,4153.1,4153.0,0.9021]
[1759297652563,0.6633059,4153.1,4153.0,1.33541]
[1759297653173,0.2300059,4153.1,4153.0,1.33541]
[1759297653975,0.0028059,4153.1,4153.0,1.33541]
[1759297661871,3.64103,4153.7,4153.6,0.87535]
[1759297662076,1.24173,4153.7,4153.6,0.7704]
[1759297662478,1.45383,4153.7,4153.6,0.7704]
[1759297662877,1.45553337,4153.7,4153.6,0.7704]
[1759297664274,1.45553337,4153.7,4153.6,1.20364]
[1759297665670,1.45553337,4153.7,4153.6,1.20365]
[1759297666272,1.45553337,4153.7,4153.6,0.3283]
[1759297666883,1.45553337,4153.7,4153.6,0.5412]
[1759297667183,1.45553337,4153.7,4153.6,0.97445]
[1759297670178,0.00170337,4153.7,4153.6,2.20689107]
[1759297672777,0.00170337,4153.7,4153.6,1.20365]
[1759297674878,1.20184337,4153.7,4153.6,0.5412]
[1759297675082,0.7571,4153.5,4153.4,1.607061]
[1759297675278,0.7571,4153.5,4153.4,0.96027]
[1759297675480,0.7571,4153.5,4153.4,1.16997]
[1759297675880,0.9991,4153.5,4153.4,1.16997]
[1759297676883,1.43236,4153.5,4153.4,1.16997]
[1759297677083,0.9991,4153.5,4153.4,1.16997]
[1759297677487,0.6804,4153.5,4153.4,1.816761]
[1759297677884,0.9991,4153.5,4153.4,1.816761]
[1759297678786,0.9991,4153.5,4153.4,1.16997]
[1759297679885,0.7571,4153.5,4153.4,1.16997]
[1759297680085,0.9991,4153.5,4153.4,1.16997]
[1759297680789,0.4384,4153.5,4153.4,1.16997]
[1759297681091,0.6804,4153.5,4153.4,1.816761]
[1759297681291,0.4594,4153.5,4153.4,1.816761]
[1759297681496,0.4594,4153.5,4153.4,1.81643689]
[1759297681696,0.4594,4153.5,4153.4,1.16997]
[1759297681697,1.43236,4153.5,4153.4,1.16997]
[1759297681887,1.43236,4153.5,4153.4,0.96027]
[1759297682191,1.43236,4153.5,4153.4,0.3124]
[1759297682493,0.75199,4153.2,4153.1,0.7457]
[1759297682696,1.19039,4153.2,4153.1,0.527]
[1759297682991,0.7571,4152.9,4152.8,0.3124]
[1759297683191,0.9991,4152.9,4152.8,0.527]
[1759297683579,1.43242,4152.9,4152.8,0.96033]
[1759297683783,0.9991,4152.9,4152.8,1.17003]
[1759297683983,0.4594,4152.9,4152.8,1.17003]
[1759297689196,0.89272,4152.9,4152.8,1.17003]
[1759297689399,1.43242,4152.9,4152.8,0.7367]
[1759297689595,0.65076,4152.5,4152.4,0.2146]
[1759297689793,1.43246,4152.5,4152.4,0.2146]
[1759297690095,1.43246,4152.5,4152.4,0.64797]
[1759297690396,0.9991,4152.5,4152.4,1.17007]
[1759297690593,0.6804,4152.5,4152.4,1.17007]
[1759297690806,1.19041,4153.0,4152.9,0.7367]
[1759297690991,1.43241,4153.0,4152.9,0.7367]
[1759297691693,1.43241,4153.0,4152.9,0.527]
[1759297694400,0.4594,4153.0,4152.9,0.7367]
[1759297694702,0.89271,4153.0,4152.9,1.17002]
[1759297698301,1.43241,4153.0,4152.9,0.7367]
[1759297698904,3.6411,4153.1,4152.9,0.7367]
[1759297699201,0.4333,4153.1,4153.0,0.8941]
[1759297699394,0.242,4153.1,4153.0,1.32741]
[1759297699793,0.65138,4153.3,4153.2,0.4294]
[1759297699998,0.65136,4153.5,4153.4,1.20017]
[1759297700202,0.89336,4153.5,4153.4,1.20017]
[1759297700905,0.67526,4153.5,4153.4,1.20017]
[1759297701202,3.85915,4153.6,4153.5,1.32736]
[1759297701394,4.10115,4153.6,4153.5,1.32736]
[1759297702000,3.6679,4153.6,4153.5,1.32736]
[1759297702605,3.6679,4153.6,4153.5,2.19336235]
[1759297702606,3.4498,4153.6,4153.5,2.19336235]
[1759297702801,0.00170337,4153.7,4153.6,0.43325]
[1759297703002,0.24370337,4153.7,4153.6,1.20015]
[1759297703507,0.67694337,4153.7,4153.6,1.20015]
[1759297706108,0.89504337,4153.7,4153.6,0.7669]
[1759297706304,0.89504337,4153.7,4153.6,1.20015]
[1759297706305,1.46294337,4153.7,4153.6,1.20015]
[1759297706611,1.12494337,4153.7,4153.6,1.20015]
[1759297707513,1.46294337,4153.7,4153.6,0.7669]
[1759297707712,1.46294337,4153.7,4153.6,0.3375]
[1759297708013,1.46294337,4153.7,4153.6,0.7692]
[1759297708213,1.12494337,4153.7,4153.6,1.20245]
[1759297709123,0.43494337,4153.7,4153.6,1.20245]
[1759297709314,0.67694337,4153.7,4153.6,1.20245]
[1759297709907,0.89394337,4153.7,4153.6,1.20245]
[1759297712418,0.24370337,4153.7,4153.6,1.20245]
[1759297712718,0.00170337,4153.7,4153.6,1.20245]
[1759297713013,3.2078,4154.6,4154.5,0.1324]
[1759297713218,3.2078,4154.6,4154.5,2.19235235]
[1759297713811,0.217,4155.1,4155.0,1.11699]
[1759297714111,1.02882452,4155.1,4155.0,0.89623998]
[1759297717422,0.78682452,4155.1,4155.0,0.89623998]
[1759297717612,1.02882452,4155.1,4155.0,0.89623998]
[1759297719624,1.46191452,4155.1,4155.0,1.32933998]
[1759297721822,1.02882452,4155.1,4155.0,1.32933998]
[1759297722122,1.46191452,4155.1,4155.0,1.32933998]
[1759297723118,1.21991452,4155.1,4155.0,1.32933998]
[1759297723318,1.46191452,4155.1,4155.0,1.32933998]
[1759297726628,1.21991452,4155.1,4155.0,0.89623998]
[1759297726927,1.46191452,4155.1,4155.0,0.89623998]
[1759297727223,1.46191452,4155.1,4155.0,0.33213998]
[1759297729224,1.46191452,4155.1,4154.1,0.3291]
[1759297729225,0.43319,4154.2,4154.1,0.3291]
[1759297729521,2.32609235,4154.2,4154.1,0.3291]
[1759297730318,2.32609235,4154.2,4154.1,0.33141614]
[1759297730626,2.32609235,4154.2,4154.1,0.00231614]
[1759297731329,5.53389235,4154.2,4154.1,0.00231614]
[1759297734628,5.29189235,4154.2,4154.1,0.54891614]
[1759297734830,5.29189235,4154.2,4154.1,0.76911614]
[1759297735032,5.53389235,4154.2,4154.1,0.00231614]
[1759297737328,10.53389235,4154.2,4154.1,0.00231614]
[1759297737928,0.64947,4153.4,4153.0,0.1324]
[1759297738138,1.192,4153.1,4153.0,0.5466]
[1759297738327,1.434,4153.1,4153.0,0.5466]
[1759297738723,0.43334,4152.7,4152.6,0.2255]
[1759297738933,1.43404,4152.7,4152.6,0.54903229]
[1759297739835,0.6854,4152.7,4152.6,0.76923229]
[1759297742438,1.0007,4152.7,4152.6,0.76923229]
[1759297742734,1.0007,4152.7,4152.6,0.00243229]
[1759297742936,2.00309083,4152.7,4152.6,0.00243229]
[1759297743438,1.0007,4152.7,4152.6,0.76923229]
[1759297744240,0.7587,4152.7,4152.6,0.76923229]
[1759297744440,1.0007,4152.7,4152.6,0.76923229]
[1759297746138,2.00309083,4152.7,4152.6,0.00243229]
[1759297746644,0.4434,4152.7,4152.6,0.76923229]
[1759297746850,0.242,4152.7,4152.6,1.20258229]
[1759297747031,0.2162,4152.7,4152.6,1.20258229]
[1759297747237,0.4582,4152.7,4152.6,1.20258229]
[1759297747436,0.89154,4152.7,4152.6,1.20258229]
[1759297747940,0.242,4152.7,4152.6,1.20258229]
[1759297748136,0.67534,4152.7,4152.6,1.20258229]
[1759297748440,0.89154,4152.7,4152.6,1.20258229]
[1759297749435,0.67534,4152.7,4152.6,1.20258229]
[1759297749744,0.242,4152.9,4152.8,0.4457]
[1759297749937,0.242,4152.9,4152.8,0.7668]
[1759297750133,0.67532,4152.9,4152.8,1.20013]
[1759297750732,3.2078,4153.0,4152.9,1.20012]
[1759297750942,3.4498,4153.0,4152.9,1.20012]
[1759297751947,3.88311,4153.0,4152.9,1.20012]
[1759297752336,4.09931,4153.0,4152.9,1.20012]
[1759297752736,3.666,4153.0,4152.9,1.20012]
[1759297752937,4.09931,4153.0,4152.9,1.20012]
[1759297753143,3.666,4153.0,4152.9,1.20012]
[1759297753632,3.2078,4153.0,4152.9,1.20012]
[1759297753836,3.4498,4153.0,4152.9,1.20012]
[1759297754637,0.242,4153.0,4152.9,1.20012]
[1759297755138,0.4582,4153.0,4152.9,1.20012]
[1759297755932,0.89151,4153.0,4152.9,0.7668]
[1759297756243,1.43401,4153.0,4152.9,1.20012]
[1759297756641,1.0007,4153.0,4152.9,1.20012]
[1759297756844,1.43401,4153.0,4152.9,1.20012]
[1759297757446,0.6854,4153.0,4152.9,1.20012]
[1759297757645,1.11871,4153.0,4152.9,1.20012]
[1759297757946,1.43401,4153.0,4152.9,0.7668]
[1759297758448,1.43401,4153.0,4152.9,1.20012]
[1759297759145,1.0007,4153.0,4152.9,1.20012]
[1759297759346,0.6854,4153.0,4152.9,1.20012]
[1759297759740,1.11871,4153.0,4152.9,1.20012]
[1759297759942,1.11871,4153.0,4152.9,0.7668]
[1759297760446,1.43061,4153.0,4152.9,1.20012]
[1759297760849,1.43061,4153.0,4152.9,0.7668]
[1759297762049,1.43061,4153.0,4152.9,1.20012]
[1759297762243,1.43061,4153.0,4152.9,0.7668]
[1759297763249,1.43061,4153.0,4152.9,1.20012]
[1759297766044,1.43061,4153.0,4152.9,0.7668]
[1759297767252,1.43061,4153.0,4152.9,1.20012]
[1759297767452,0.4582,4153.0,4152.9,1.20012]
[1759297767644,0.89151,4153.0,4152.9,1.20012]
[1759297767950,0.65587,4153.4,4153.3,0.7606]
[1759297768248,0.89787,4153.4,4153.3,0.7606]
[1759297768443,0.89787,4153.4,4153.3,1.19388]
[1759297768751,0.65587,4153.4,4153.3,1.19388]
[1759297768954,0.43325,4153.6,4153.5,1.10015]
[1759297769157,3.2078,4153.7,4153.6,1.19385]
[1759297769355,3.2078,4154.2,4154.0,1.00581]
[1759297769553,3.2078,4154.2,4154.1,0.7606]
[1759297769853,3.88299,4154.2,4154.1,0.7606]
[1759297770052,4.10559,4154.2,4154.1,0.7606]
[1759297770450,0.65575,4154.6,4154.5,0.5726]
[1759297770753,0.89775,4154.6,4154.5,0.8895]
[1759297770949,1.44555,4154.6,4154.5,0.8895]
[1759297771950,1.44555,4154.6,4154.5,0.7606]
[1759297773657,1.44555,4154.6,4154.5,0.8895]
[1759297774356,1.44555,4154.6,4154.5,0.7606]
[1759297774750,3.64093,4154.7,4154.6,0.3169]
[1759297774955,4.65333,4154.7,4154.6,0.5395]
[1759297775356,4.65333,4154.7,4154.6,0.7606]
[1759297775857,4.65333,4154.7,4154.6,1.19374]
[1759297776055,4.65333,4154.7,4154.6,0.7606]
[1759297776856,1.44553,4154.7,4154.6,0.7606]
[1759297777951,1.20353,4154.7,4154.6,0.7606]
[1759297778158,1.44553,4154.7,4154.6,0.7606]
[1759297778955,1.44553,4154.7,4154.6,0.3169]
[1759297779152,0.43317,4154.3,4154.2,0.43318]
[1759297779353,1.20359,4154.1,4154.0,0.3515]
[1759297779556,1.44559,4154.1,4154.0,0.3515]
[1759297779753,1.44559,4154.1,4154.0,0.6684]
[1759297780058,1.44559,4154.1,4154.0,1.1016]
[1759297780358,1.44559,4154.1,4154.0,0.6684]
[1759297782862,1.44559,4154.1,4154.0,1.1016]
[1759297783261,1.44559,4154.1,4154.0,1.3227]
[1759297783763,1.44559,4154.1,4154.0,0.8895]
[1759297783963,1.0124,4154.1,4154.0,1.1938]
[1759297784358,0.7704,4154.1,4154.0,1.3227]
[1759297784556,1.0124,4154.1,4154.0,1.3227]
[1759297784763,1.44559,4154.1,4154.0,1.3227]
[1759297784963,1.44559,4154.1,4154.0,0.8895]
[1759297785463,1.44559,4154.1,4154.0,1.3227]
[1759297786166,1.44559,4154.1,4154.0,0.8895]
[1759297786361,1.44559,4154.1,4154.0,1.3227]
[1759297787562,1.44559,4154.1,4154.0,0.8895]
[1759297787762,1.44559,4154.1,4154.0,1.3227]
[1759297788756,1.44559,4154.1,4154.0,0.8895]
[1759297788956,1.44559,4154.1,4154.0,1.3227]
[1759297789458,1.44559,4154.1,4154.0,0.8895]
[1759297790369,1.44559,4154.1,4154.0,1.32271]
[1759297790554,0.7704,4154.6,4154.5,0.5395]
[1759297790754,0.86649,4154.2,4154.1,0.4437]
[1759297790957,1.44559,4154.2,4154.1,0.7606]
[1759297792554,1.10849,4154.2,4154.1,1.1938]
[1759297792760,0.86649,4154.2,4154.1,0.7606]
[1759297793067,1.44559,4154.2,4154.1,0.7606]
[1759297796070,1.44559,4154.2,4154.1,1.1938]
[1759297796569,1.44559,4154.2,4154.1,0.7606]
[1759297796759,1.44559,4154.2,4154.1,0.5395]
[1759297796964,0.5402,4153.7,4153.6,0.3215]
[1759297797173,1.44134,4153.7,4153.6,0.3215]
[1759297797362,1.44134,4153.7,4153.6,1.20125]
[1759297797768,1.44134,4153.7,4153.6,0.3215]
[1759297797972,1.44134,4153.7,4153.6,0.5505]
[1759297798372,1.44134,4153.7,4153.6,0.98375]
[1759297798574,1.44134,4153.7,4153.6,1.20125]
[1759297798771,1.44134,4153.7,4153.6,0.768]
[1759297799275,1.19935,4153.6,4153.5,3.2078]
[1759297799473,1.19935,4153.6,4153.5,4.19156]
[1759297799665,0.4517,4153.6,4153.5,5.40118847]
[1759297799972,1.12695,4153.6,4153.5,5.40118847]
[1759297800572,1.12695,4153.6,4153.5,2.19338847]
[1759297800771,0.2258,4153.9,4153.8,0.43323]
[1759297801071,0.2258,4153.9,4153.8,1.74565847]
[1759297801475,0.2258,4153.9,4153.8,2.06715847]
[1759297801964,0.4332,4154.1,4154.0,1.32739]
[1759297802275,0.43319,4154.2,4154.1,1.20118]
[1759297802474,0.43319,4154.2,4154.1,2.06710847]
[1759297803873,0.2258,4154.6,4154.5,0.1262]
[1759297804072,0.242,4154.6,4154.5,1.00585]
[1759297804466,0.6937,4154.6,4154.5,0.8942]
[1759297804665,1.0081,4154.6,4154.5,0.8942]
[1759297805978,1.0081,4154.6,4154.5,0.768]
[1759297807785,1.44124,4154.6,4154.5,0.768]
[1759297808983,1.12684,4154.6,4154.5,1.32735]
[1759297809188,0.2258,4154.6,4154.5,1.32735]
[1759297809389,0.90094,4154.6,4154.5,1.32735]
[1759297809889,0.90094,4154.6,4154.5,0.8942]
[1759297810690,0.90094,4154.6,4154.5,1.32735]
[1759297811391,0.65894,4154.6,4154.5,1.32735]
[1759297811593,0.90094,4154.6,4154.5,1.32735]
[1759297811893,0.90094,4154.6,4154.5,0.8942]
[1759297812790,1.44124,4154.6,4154.5,0.8942]
[1759297814596,1.44124,4154.6,4154.5,1.32735]
[1759297815597,1.19927,4154.3,4154.2,0.5505]
[1759297816090,0.88489,4154.1,4154.0,3.5293]
[1759297816397,2.30721847,4154.1,4154.0,3.5293]
[1759297816797,1.19934,4153.7,4153.6,1.84533283]
[1759297817198,1.19934,4153.7,4153.6,1.20124]
[1759297817796,1.44134,4153.7,4153.6,0.5505]
[1759297818001,0.4517,4153.5,4153.3,0.3215]
[1759297818198,1.19937,4153.4,4153.3,0.768]
[1759297818395,0.4517,4153.4,4153.3,0.768]
[1759297818696,0.67523,4153.8,4153.6,0.43325]
[1759297818902,0.88713,4153.8,4153.7,0.7742]
[1759297819201,1.45043,4153.8,4153.7,0.7742]
[1759297819596,1.45043,4153.8,4153.7,0.3434]
[1759297819803,4.65823,4153.8,4153.7,0.5661]
[1759297819997,0.7752,4153.6,4153.5,0.7742]
[1759297820301,0.7752,4153.6,4153.5,0.912]
[1759297821199,0.4393,4153.6,4153.5,0.912]
[1759297821600,0.87255,4153.6,4153.5,0.912]
[1759297822101,3.2078,4153.8,4153.7,1.20744]
[1759297822297,0.242,4153.8,4153.7,1.20744]
[1759297822802,0.67523,4153.8,4153.7,1.20744]
[1759297823100,0.88713,4153.8,4153.7,0.7742]
[1759297823504,1.42653,4153.8,4153.7,0.7742]
[1759297823701,1.42653,4153.8,4153.7,0.5661]
[1759297824191,0.97067,4153.4,4153.3,0.7978]
[1759297824394,1.19917,4153.4,4153.3,1.23108]
[1759297824595,0.2285,4153.4,4153.3,1.23108]
[1759297824895,0.4705,4153.6,4153.5,1.36035]
[1759297825096,0.90375,4153.6,4153.5,0.9271]
[1759297825302,0.67525,4153.6,4153.5,2.22628847]
[1759297827302,1.44115,4153.6,4153.5,0.7978]
[1759297827602,1.44115,4153.6,4153.5,0.3422]
[1759297828706,2.30707847,4153.6,4153.5,0.3422]
[1759297828903,0.6618,4153.1,4153.0,0.9267]
[1759297829104,0.6618,4153.1,4153.0,1.36001]
[1759297829704,1.1992,4153.1,4153.0,0.9267]
[1759297829908,1.19924,4152.7,4152.6,1.23358229]
[1759297831396,1.19924,4152.7,4152.6,0.80023229]
[1759297831907,1.19924,4152.7,4152.6,1.23358229]
[1759297832408,1.19924,4152.7,4152.6,0.80023229]
[1759297832905,6.19924,4152.7,4152.6,0.00243229]
[1759297833207,1.19924,4152.7,4152.6,0.80023229]
[1759297833410,1.12924,4152.7,4152.6,0.80023229]
[1759297833901,1.44124,4152.7,4152.6,0.80023229]
[1759297835002,1.19924,4152.7,4152.6,0.80023229]
[1759297835211,1.44124,4152.7,4152.6,0.80023229]
[1759297835601,1.44124,4152.7,4152.6,0.00243229]
[1759297835802,6.44124,4152.7,4152.6,0.00243229]
[1759297837003,6.19924,4152.7,4152.6,0.00243229]
[1759297837205,1.44124,4152.7,4152.6,0.00243229]
[1759297839801,0.88724,4152.7,4152.6,0.80023229]
[1759297840006,0.90484,4152.7,4152.6,0.80023229]
[1759297840914,1.44224,4152.7,4152.6,0.80023229]
[1759297844013,1.44224,4152.7,4152.6,1.23358229]
[1759297844215,1.13024,4152.7,4152.6,1.23358229]
[1759297844415,1.13024,4152.7,4152.6,0.80023229]
[1759297845114,1.13024,4152.7,4152.6,1.23358229]
[1759297845311,0.4715,4152.7,4152.6,1.23358229]
[1759297845519,0.90484,4152.7,4152.6,1.23358229]
[1759297845710,3.2078,4152.8,4152.7,0.43334]
[1759297845911,4.11263,4152.8,4152.7,1.23114]
[1759297848220,3.6783,4152.8,4152.7,1.23114]
[1759297849111,4.11163,4152.8,4152.7,1.23114]
[1759297849313,4.64903,4152.8,4152.7,1.23114]
[1759297851823,3.9737,4152.8,4152.7,1.23114]
[1759297852026,4.33703,4152.8,4152.7,1.23114]
[1759297852520,1.19924,4152.7,4152.6,0.00243229]
[1759297852822,2.30716847,4152.7,4152.6,0.00243229]
[1759297853022,7.30716847,4152.7,4152.6,0.00243229]
[1759297853819,2.06516847,4152.7,4152.6,0.00243229]
[1759297854122,2.30716847,4152.7,4152.6,0.00243229]
[1759297854826,2.06516847,4152.7,4152.6,0.00243229]
[1759297855026,2.30716847,4152.7,4152.6,0.00243229]
[1759297858429,2.06516847,4152.7,4152.6,0.00243229]
[1759297858630,2.30716847,4152.7,4152.6,0.34463229]
[1759297859230,2.30716847,4152.7,4152.6,0.00243229]
[1759297860230,1.44124,4152.7,4152.6,0.00243229]
[1759297860630,1.19924,4152.7,4152.6,1.21958229]
[1759297860826,1.44124,4152.7,4152.6,0.78623229]
[1759297861333,1.44124,4152.7,4152.6,0.00243229]
[1759297869540,1.18545,4151.6,4151.5,0.3422]
[1759297869740,1.42745,4151.6,4151.5,0.5589]
[1759297870234,1.42745,4151.6,4151.5,0.3422]
[1759297870441,1.43007168,4151.6,4151.5,0.34519874]
[1759297871533,1.18807168,4151.6,4151.5,0.56189874]
[1759297871741,0.24462168,4151.6,4151.5,1.34775874]
[1759297872236,0.00262168,4151.6,4151.5,1.34775874]
[1759297872534,0.00262168,4151.6,4151.5,6.99281912]
[1759297873133,0.24562168,4151.6,4151.5,1.99281912]
[1759297873740,1.43107168,4151.6,4151.5,0.00299874]
[1759297879242,2.43374973,4151.6,4151.5,0.00299874]
[1759297880549,0.7883,4150.6,4150.5,0.5241]
[1759297880750,2.03397805,4150.6,4150.5,0.5241]
[1759297880951,2.46753805,4150.6,4150.5,0.5241]
[1759297881147,1.22186,4150.6,4150.5,0.5241]
[1759297881450,1.46486,4150.6,4150.5,0.8689]
[1759297881653,1.46486,4150.6,4150.5,0.87095015]
[1759297884348,1.12296,4150.6,4150.5,0.87095015]
[1759297884854,1.44366,4150.6,4150.5,0.87095015]
[1759297888058,1.20066,4150.6,4150.5,0.87095015]
[1759297888452,1.44366,4150.6,4150.5,0.87095015]
[1759297889155,1.20066,4150.6,4150.5,0.87095015]
[1759297889361,1.44366,4150.6,4150.5,0.87095015]
[1759297891659,3.2078,4150.7,4150.5,0.55575015]
[1759297891865,3.2078,4150.7,4150.6,2.20313805]
[1759297892056,0.4335,4151.1,4151.0,0.8993]
[1759297892255,0.6765,4151.1,4151.0,0.8993]
[1759297895268,0.8878,4151.1,4151.0,0.8993]
[1759297896266,2.41917805,4151.1,4151.0,0.3243]
[1759297896566,2.41917805,4151.1,4150.5,0.90045015]
[1759297896567,0.85286,4150.6,4150.5,0.90045015]
[1759297896760,1.09586,4150.6,4150.5,0.90045015]
[1759297897266,1.41656,4150.6,4150.5,0.55135015]
[1759297897461,1.41656,4150.6,4150.5,0.32635015]
[1759297897860,1.41656,4150.6,4150.5,0.55135015]
[1759297898867,0.88786,4150.6,4150.5,0.90135015]
[1759297903871,0.64486,4150.6,4150.5,0.90135015]
[1759297904072,0.88786,4150.6,4150.5,0.90135015]
[1759297904566,0.64486,4150.6,4150.5,0.90135015]
[1759297904761,0.88786,4150.6,4150.5,0.90135015]
[1759297905872,0.88786,4150.6,4150.5,1.33492015]
[1759297906167,3.2078,4150.9,4150.8,0.4426]
[1759297906369,0.243,4150.9,4150.8,1.20043]
[1759297906567,0.243,4150.9,4150.8,0.7669]
[1759297906568,0.67652,4150.9,4150.8,0.7669]
[1759297906769,0.43352,4150.9,4150.8,0.7669]
[1759297907070,0.4335,4151.2,4151.1,1.2004]
[1759297907271,0.6765,4151.2,4151.1,1.2004]
[1759297909875,0.6765,4151.2,4151.1,0.7669]
[1759297910273,0.6765,4151.2,4151.1,1.2004]
[1759297910576,0.6765,4151.2,4151.1,0.7669]
[1759297912275,0.6765,4151.2,4151.1,1.2004]
[1759297912975,0.243,4151.2,4151.1,1.2004]
[1759297913476,0.67649,4151.2,4151.1,1.2004]
[1759297913680,0.243,4151.2,4151.1,1.2004]
[1759297914878,0.43348,4151.3,4151.2,1.20738]
[1759297915073,0.67648,4151.3,4151.2,1.20738]
[1759297915682,3.2078,4151.4,4151.3,0.43348]
[1759297915985,0.00262168,4151.6,4151.5,1.33306]
[1759297916283,0.46942168,4151.6,4151.5,1.33306]
[1759297916682,0.22642168,4151.6,4151.5,1.33306]
[1759297916982,0.46942168,4151.6,4151.5,1.33306]
[1759297917178,0.90287168,4151.6,4151.5,1.33306]
[1759297918182,0.22642168,4151.6,4151.5,1.33306]
[1759297918380,0.90287168,4151.6,4151.5,1.33306]
[1759297918577,0.90287168,4151.6,4151.5,0.8996]
[1759297918884,0.24562168,4151.6,4151.5,1.33306]
[1759297919483,0.00262168,4151.6,4151.5,1.33306]
[1759297919885,0.00262168,4151.6,4151.5,5.18682759]
[1759297920383,0.00262168,4151.6,4151.5,6.05342015]
[1759297920882,0.00262168,4151.6,4151.5,5.40745256]
[1759297921078,2.07116424,4151.6,4151.5,1.33306]
[1759297921280,1.20197,4151.4,4151.3,0.3222]
[1759297921483,1.20197,4151.4,4151.1,0.7557]
[1759297921484,0.86469,4151.2,4151.1,0.7557]
[1759297921679,1.20199,4151.2,4151.1,0.3222]
[1759297921879,0.43352,4150.9,4150.8,0.64596759]
[1759297922185,0.43352,4150.9,4150.8,0.2297]
[1759297922186,1.44502,4150.9,4150.8,0.2297]
[1759297922482,1.0115,4150.9,4150.8,0.7739]
[1759297925891,1.0115,4150.9,4150.8,0.3222]
[1759297926086,1.20205,4150.6,4150.5,0.00205015]
[1759297926288,2.06864256,4150.6,4150.5,0.00205015]
[1759297926684,2.06864256,4150.6,4150.5,0.32425015]
[1759297926884,2.31164256,4150.6,4150.5,0.55395015]
[1759297928484,2.31164256,4150.6,4150.5,0.00205015]
[1759297929091,2.31164256,4150.6,4150.5,0.32425015]
[1759297929290,2.06864256,4150.6,4150.5,0.55395015]
[1759297929492,2.31164256,4150.6,4150.5,0.55395015]
[1759297930082,2.31164256,4150.6,4150.5,1.76824271]
[1759297930083,0.6742,4150.6,4150.5,1.76824271]
[1759297930288,0.4668,4150.6,4150.5,0.90165015]
[1759297931893,0.6742,4150.6,4150.5,0.90165015]
[1759297932087,1.87809256,4150.6,4150.5,0.55395015]
[1759297932293,1.87809256,4150.6,4150.5,0.00205015]
[1759297932688,2.31165256,4150.6,4150.5,0.00205015]
[1759297932893,2.31165256,4150.6,4150.5,0.32425015]
[1759297933892,2.31165256,4150.6,4150.5,0.00205015]
[1759297935597,1.10776,4150.6,4150.5,0.90165015]
[1759297935893,1.44506,4150.6,4150.5,0.90165015]
[1759297937700,2.31165256,4150.6,4150.5,0.00205015]
[1759297938899,2.31165256,4150.6,4150.5,0.93295015]
[1759297938900,1.20206,4150.6,4150.5,0.93295015]
[1759297939203,1.10776,4150.6,4150.5,0.93295015]
[1759297939396,1.44226,4150.6,4150.5,0.93295015]
[1759297942811,1.19926,4150.6,4150.5,0.93295015]
[1759297943106,1.44226,4150.6,4150.5,0.93295015]
[1759297943310,1.44226,4150.6,4150.5,0.34625015]
[1759297945801,1.44226,4150.6,4150.5,0.57045015]
[1759297946104,1.10776,4150.6,4150.5,0.92915015]
[1759297946901,3.64133,4150.9,4150.8,0.7857]
[1759297947106,3.88433,4150.9,4150.8,0.7857]
[1759297947302,4.09813,4150.9,4150.8,0.7857]
[1759297947502,3.85513,4150.9,4150.8,0.7857]
[1759297948209,4.38763,4150.9,4150.8,0.7857]
[1759297948908,4.07673,4150.9,4150.8,0.7857]
[1759297949710,4.38763,4150.9,4150.8,0.7857]
[1759297950008,3.2078,4150.9,4150.8,1.21924]
[1759297950209,3.2078,4150.9,4150.8,2.08583256]
[1759297950511,0.3109,4151.5,4150.8,2.08583256]
[1759297950512,0.43352,4151.0,4150.9,0.7857]
[1759297950809,0.21642168,4151.6,4151.5,0.9218]
[1759297951713,0.64987168,4151.6,4151.5,0.9218]
[1759297955515,0.87147168,4151.6,4151.5,0.9218]
[1759297962408,0.64987168,4151.6,4151.5,1.35526]
[1759297962610,0.43607168,4151.6,4151.5,0.9218]
[1759297962811,0.43607168,4151.6,4151.5,1.35526]
[1759297963116,0.43607168,4151.6,4151.5,0.9218]
[1759297963515,0.43607168,4151.6,4151.5,1.35526]
[1759297963909,0.43607168,4151.6,4151.5,0.9218]
[1759297964413,0.64987168,4151.6,4151.5,0.9218]
[1759297966517,0.87147168,4151.6,4151.5,0.9218]
[1759297966711,1.18237168,4151.6,4151.5,0.9218]
[1759297968418,0.87147168,4151.6,4151.5,1.35526]
[1759297969218,0.64987168,4151.6,4151.5,1.35526]
[1759297970917,0.00262168,4151.6,4151.5,1.35526]
[1759297971116,3.2078,4152.3,4151.8,0.7857]
[1759297971117,0.43342,4151.9,4151.8,0.7857]
[1759297971822,0.64722,4151.9,4151.8,0.7857]
[1759297972123,0.64923167,4151.9,4151.8,0.7857]
[1759297973821,1.19103167,4151.9,4151.8,0.7857]
[1759297977324,0.00201167,4151.9,4151.8,1.21913]
[1759297977521,0.43543167,4151.9,4151.8,1.21913]
[1759297978223,0.43543167,4151.9,4151.8,0.7857]
[1759297978422,0.65323167,4151.9,4151.8,0.7857]
[1759297979024,1.19503167,4151.9,4151.8,0.7857]
[1759297980733,1.19503167,4151.9,4151.6,0.64845247]
[1759297980734,1.19304,4151.7,4151.6,0.344]
[1759297981425,1.19304,4151.7,4151.6,0.5636]